fUST/lending_fUST_20251004
["ID","MTS","AMOUNT","RATE_DAILY","PERIOD"]
[389078876,1759575056353,-500.0,0.00021043,2]
[389078878,1759575056362,-988.59,0.00021043,2]
[389078880,1759575056371,-500.0,0.00021043,2]
[389078882,1759575056380,-1191.78,0.00021043,2]
[389078884,1759575056389,-875.87,0.00021043,2]
[389078886,1759575056398,-691.51,0.00021043,2]
[389078888,1759575056407,-500.0,0.00021043,2]
[389078890,1759575056416,-500.0,0.00021043,2]
[389078892,1759575056425,-500.0,0.00021043,2]
[389078894,1759575056436,-500.0,0.00021043,2]
[389078896,1759575056445,-481.7641048,0.00021043,2]
[389078898,1759575056454,-541.41,0.00021043,2]
[389078900,1759575056463,-500.0,0.00021043,2]
[389078902,1759575056472,-407.7154987,0.00021043,2]
[389078904,1759575056481,-870.08,0.00021043,2]
[389078906,1759575056491,-500.0,0.00021043,2]
[389078908,1759575056500,-500.0,0.00021043,2]
[389078910,1759575056509,-500.0,0.00021043,2]
[389078912,1759575056520,-1541.15,0.00021043,2]
[389078914,1759575056528,-500.0,0.00021043,2]
[389078916,1759575056539,-500.0,0.00021043,2]
[389078918,1759575056548,-500.0,0.00021043,2]
[389078920,1759575056556,-500.0,0.00021043,2]
[389078922,1759575056565,-500.0,0.00021043,2]
[389078924,1759575056574,-1212.69,0.00021043,2]
[389078926,1759575056583,-415.55880759,0.00021043,2]
[389078928,1759575056591,-2265.11,0.00021043,2]
[389078930,1759575056600,-246.78,0.00021043,2]
[389078931,1759575056610,-881.22,0.00021043,2]
[389078933,1759575056619,-500.0,0.00021043,2]
[389078935,1759575056628,-500.0,0.00021043,2]
[389078937,1759575056637,-1311.26,0.00021043,2]
[389078939,1759575056647,-1187.5,0.00021043,2]
[389078941,1759575056655,-500.0,0.00021043,2]
[389078942,1759575056665,-500.0,0.00021043,2]
[389078944,1759575056674,-500.0,0.00021043,2]
[389078946,1759575056683,-500.0,0.00021043,2]
[389078948,1759575056693,-500.0,0.00021043,2]
[389078950,1759575056702,-1480.36,0.00021043,2]
[389078952,1759575056711,-1187.03,0.00021043,2]
[389078954,1759575056720,-946.82,0.00021043,2]
[389078956,1759575056729,-500.0,0.00021043,2]
[389078957,1759575056738,-500.0,0.00021043,2]
[389078959,1759575056747,-500.0,0.00021043,2]
[389078961,1759575056757,-500.0,0.00021043,2]
[389078963,1759575056766,-500.0,0.00021043,2]
[389078965,1759575056775,-7317.51,0.00021043,2]
[389078967,1759575056785,-1306.41,0.00021043,2]
[389078969,1759575056794,-500.0,0.00021043,2]
[389078971,1759575056808,-500.0,0.00021043,2]
[389078973,1759575056817,-612.34,0.00021043,2]
[389078975,1759575056826,-4234.97,0.00021043,2]
[389078977,1759575056835,-500.0,0.00021043,2]
[389078978,1759575056844,-1002.88,0.00021043,2]
[389078980,1759575056857,-500.0,0.00021043,2]
[389078982,1759575056866,-1520.59,0.00021043,2]
[389078984,1759575056875,-500.0,0.00021043,2]
[389078986,1759575056884,-4418.2,0.00021043,2]
[389078988,1759575056897,-500.0,0.00021043,2]
[389078990,1759575056918,-322.18152945,0.00021043,2]
[389078992,1759575056929,-1110.19,0.00021043,2]
[389078993,1759575056938,-500.0,0.00021043,2]
[389078995,1759575056947,-2672.37,0.00021043,2]
[389078997,1759575056962,-500.0,0.00021043,2]
[389078999,1759575056973,-500.0,0.00021043,2]
[389079001,1759575056982,-1258.01,0.00021043,2]
[389079002,1759575056990,-500.0,0.00021043,2]
[389079004,1759575056999,-919.8,0.00021043,2]
[389079006,1759575057008,-502.99,0.00021043,2]
[389079008,1759575057017,-632.05154757,0.00021043,2]
[389079010,1759575057026,-500.0,0.00021043,2]
[389079012,1759575057035,-500.0,0.00021043,2]
[389079013,1759575057045,-1224.47,0.00021043,2]
[389079015,1759575057054,-500.0,0.00021043,2]
[389079017,1759575057063,-500.0,0.00021043,2]
[389079019,1759575057072,-151.0,0.00021044,2]
[389079021,1759575057081,-500.0,0.00021044,2]
[389079022,1759575057090,-151.0,0.00021044,2]
[389079024,1759575057100,-151.0,0.00021044,2]
[389079026,1759575057110,-500.0,0.00021044,2]
[389079028,1759575057119,-500.0,0.00021044,2]
[389079030,1759575057129,-151.0,0.00021044,2]
[389079032,1759575057138,-500.0,0.00021044,2]
[389079034,1759575057146,-152.78972036,0.00021044,2]
[389079035,1759575057156,-151.0,0.00021044,2]
[389079037,1759575057165,-642.07528156,0.00021044,2]
[389079039,1759575057175,-223.69350373,0.00021044,2]
[389079041,1759575057184,-151.0,0.00021044,2]
[389079043,1759575057193,-610.33412518,0.00021044,2]
[389079045,1759575057203,-500.0,0.00021044,2]
[389079047,1759575057212,-500.0,0.00021044,2]
[389079048,1759575057220,-500.0,0.00021044,2]
[389079050,1759575057230,-500.0,0.00021044,2]
[389079052,1759575057240,-500.0,0.00021044,2]
[389079054,1759575057249,-618.34414965,0.00021044,2]
[389079056,1759575057258,-500.0,0.00021044,2]
[389079058,1759575057267,-151.0,0.00021044,2]
[389079059,1759575057277,-151.0,0.00021044,2]
[389079061,1759575057288,-151.0,0.00021044,2]
[389079063,1759575057298,-151.0,0.00021044,2]
[389079065,1759575057308,-125.67962448,0.00021044,2]
[389079103,1759575057738,-500.0,0.00020769,2]
[389079105,1759575057748,-2426.179352,0.00020861,2]
[389079106,1759575057758,-2426.179352,0.00020861,2]
[389079108,1759575057767,-2426.179352,0.00020873,2]
[389079110,1759575057777,-119.20307652,0.00021044,2]
[389079111,1759575057786,-151.0,0.00021044,2]
[389079113,1759575057795,-151.0,0.00021044,2]
[389079115,1759575057805,-151.0,0.00021044,2]
[389079116,1759575057814,-151.0,0.00021044,2]
[389079118,1759575057824,-152.56144,0.00021044,2]
[389079120,1759575057833,-151.0,0.00021044,2]
[389079122,1759575057843,-151.0,0.00021044,2]
[389079123,1759575057855,-27.90680945,0.00021044,2]
[389079139,1759575058062,500.0,0.00020759,2]
[389079152,1759575058202,500.0,0.00020768,2]
[389079176,1759575058496,500.0,0.00020768,2]
[389079202,1759575058801,378.50053142,0.00020768,2]
[389079211,1759575058917,500.0,0.00020759,2]
[389079231,1759575059148,500.0,0.00020768,2]
[389079324,1759575060246,500.0,0.00020768,2]
[389079382,1759575061210,633.88,0.00020768,2]
[389079417,1759575061711,-188.78798777,0.00020769,2]
[389079421,1759575061739,-500.0,0.00020769,2]
[389079425,1759575061766,-500.0,0.00020769,2]
[389079429,1759575061794,-2120.37,0.00020769,2]
[389079434,1759575061827,1140.66,0.00020767,2]
[389079511,1759575062571,300.0,0.00020768,2]
[389079525,1759575062700,500.0,0.00020759,2]
[389079640,1759575063757,500.0,0.00020759,2]
[389079672,1759575064045,507.60738747,0.00020769,2]
[389079719,1759575064478,433.42663699,0.00020769,2]
[389079722,1759575064500,66.57336301,0.00020769,2]
[389079740,1759575064656,605.48,0.00020767,2]
[389079838,1759575065782,2173.68,0.00020769,2]
[389079937,1759575066717,500.0,0.00020769,2]
[389079946,1759575066791,500.0,0.00020768,2]
[389079986,1759575067181,156.254511,0.00024808,30]
[389079990,1759575067212,500.0,0.00020769,2]
[389080052,1759575067879,500.0,0.00020759,2]
[389080156,1759575068896,500.0,0.00020769,2]
[389080322,1759575070501,1420.73,0.00020767,2]
[389080357,1759575070818,500.0,0.00020768,2]
[389080477,1759575072097,500.0,0.00020759,2]
[389080594,1759575073313,500.0,0.00020769,2]
[389080657,1759575074356,500.0,0.00020768,2]
[389080663,1759575074407,1090.37,0.00020769,2]
[389080743,1759575075202,143.17663699,0.00020759,2]
[389080746,1759575075227,356.82336301,0.00020759,2]
[389080958,1759575077397,500.0,0.00020768,2]
[389081015,1759575077927,500.0,0.00020768,2]
[389081060,1759575078349,500.0,0.00020769,2]
[389081122,1759575078924,1651.72,0.00020769,2]
[389081256,1759575080208,500.0,0.00020767,2]
[389081370,1759575081314,500.0,0.00020759,2]
[389081384,1759575081432,1657.58,0.00020759,2]
[389081514,1759575082710,500.0,0.00020759,2]
[389081763,1759575085483,971.59,0.00020768,2]
[389081819,1759575086035,541.83,0.00020767,2]
[389082015,1759575087961,-2632.62,0.0002077,2]
[389082016,1759575087990,-2308.590648,0.00020771,2]
[389082017,1759575089634,500.0,0.00020768,2]
[389082018,1759575090423,500.0,0.00020768,2]
[389082022,1759575091588,500.0,0.00020768,2]
[389082033,1759575091805,320.46663699,0.00020768,2]
[389082036,1759575091829,179.53336301,0.00020768,2]
[389082055,1759575092018,-117.588704,0.00020771,2]
[389082059,1759575092053,-2426.179352,0.00020771,2]
[389082063,1759575092081,-151.0,0.00020771,2]
[389082074,1759575092182,500.0,0.00020768,2]
[389082082,1759575092376,500.0,0.00020768,2]
[389082086,1759575092404,513.32,0.00020768,2]
[389082104,1759575092597,500.0,0.00020768,2]
[389082127,1759575092825,500.0,0.00020769,2]
[389082149,1759575093055,500.0,0.00020769,2]
[389082166,1759575093301,500.0,0.0002077,2]
[389082172,1759575093567,378.92053546,0.00020771,2]
[389082233,1759575094172,718.23335254,0.00020768,2]
[389082237,1759575094193,393.40664746,0.00020768,2]
[389082383,1759575095578,1008.3,0.00020759,2]
[389082387,1759575095604,500.0,0.00020759,2]
[389082459,1759575096354,500.0,0.00020759,2]
[389082511,1759575096978,1464.36,0.00020767,2]
[389082687,1759575098804,3305.51,0.00020771,2]
[389082826,1759575100210,500.0,0.00020768,2]
[389082909,1759575101267,1412.72,0.00020768,2]
[389083145,1759575103604,632.31,0.00020768,2]
[389083228,1759575104474,1770.71,0.00020767,2]
[389083300,1759575105168,414.4,0.00020769,2]
[389083304,1759575105189,85.6,0.00020769,2]
[389083358,1759575105694,500.0,0.00020759,2]
[389083406,1759575106167,500.0,0.00020767,2]
[389083428,1759575106370,730.97,0.00020759,2]
[389083433,1759575106404,442.88149303,0.00020759,2]
[389083538,1759575107481,599.62,0.00020759,2]
[389083596,1759575108098,500.0,0.00020769,2]
[389083728,1759575109751,500.0,0.00020769,2]
[389083834,1759575110841,500.0,0.00020768,2]
[389083840,1759575110885,752.78,0.00020769,2]
[389083991,1759575112555,3240.98,0.00020767,2]
[389084120,1759575113929,1553.44,0.00020768,2]
[389084230,1759575115101,93.73850697,0.00020759,2]
[389084233,1759575115122,406.26149303,0.00020759,2]
[389084237,1759575115150,1500.12796508,0.00020768,2]
[389084240,1759575115172,576.22203492,0.00020768,2]
[389084334,1759575116294,-2426.179352,0.00020772,2]
[389084338,1759575116322,-2426.179352,0.00020772,2]
[389084342,1759575116352,-144.292592,0.00020772,2]
[389084349,1759575116403,500.0,0.00020768,2]
[389084683,1759575119854,500.0,0.00020768,2]
[389084736,1759575120364,-2978.84,0.00020769,2]
[389084740,1759575120391,-6.707408,0.00020772,2]
[389084761,1759575120571,500.0,0.00020767,2]
[389084873,1759575121615,1307.35,0.00020767,2]
[389084956,1759575122666,692.13,0.00020769,2]
[389085062,1759575123733,500.0,0.00020759,2]
[389085117,1759575124283,500.0,0.00020759,2]
[389085126,1759575124365,-300.0,0.0002086,2]
[389085251,1759575125754,619.45,0.00020767,2]
[389085325,1759575126645,1201.99,0.00020768,2]
[389085358,1759575126963,1354.6571528,0.00020859,2]
[389085362,1759575128081,500.0,0.00020768,2]
[389085398,1759575128689,1301.7,0.00020769,2]
[389085611,1759575132412,500.0,0.0002077,2]
[389085612,1759575132439,500.0,0.00020768,2]
[389085613,1759575132468,500.0,0.00020759,2]
[389085614,1759575135574,500.0,0.00020768,2]
[389085615,1759575136223,493.29142968,0.00020769,2]
[389085616,1759575137388,500.0,0.00020768,2]
[389085617,1759575137922,994.83,0.00020767,2]
[389085618,1759575138720,434.09141752,0.00020768,2]
[389085619,1759575138742,65.90858248,0.00020768,2]
[389085620,1759575140010,621.31,0.00020769,2]
[389085621,1759575140717,1357.0,0.00020768,2]
[389085622,1759575143052,867.92,0.00020768,2]
[389085623,1759575143771,500.0,0.00020768,2]
[389085624,1759575145279,500.0,0.00020759,2]
[389085625,1759575145553,500.0,0.00020759,2]
[389085626,1759575145831,613.2,0.00020771,2]
[389085627,1759575146910,500.0,0.00020768,2]
[389085628,1759575148231,1088.11,0.00020768,2]
[389085629,1759575151174,735.51,0.00020769,2]
[389085630,1759575151733,1490.3489628,0.00020043,2]
[389085631,1759575151838,869.93,0.00020768,2]
[389085632,1759575152177,290.77245472,0.00020759,2]
[389085633,1759575152202,209.22754528,0.00020759,2]
[389085634,1759575152612,-500.0,0.00020861,2]
[389085635,1759575152640,-300.86542138,0.00020861,2]
[389085636,1759575152668,-2426.179352,0.00020861,2]
[389085637,1759575152697,-1119.74110124,0.00020861,2]
[389085638,1759575152921,500.0,0.00020768,2]
[389085639,1759575153165,9290.78245472,0.00020668,2]
[389085640,1759575153191,529.435184,0.00020668,2]
[389085641,1759575153215,10000.01,0.00020668,2]
[389085642,1759575153241,8423.78796508,0.00020668,2]
[389085643,1759575153266,10000.01,0.00020668,2]
[389085644,1759575153291,10000.01,0.00020668,2]
[389085645,1759575153315,10000.01,0.00020668,2]
[389085646,1759575153339,10000.01,0.00020668,2]
[389085647,1759575153365,10000.01,0.00020668,2]
[389085648,1759575153390,10000.01,0.00020668,2]
[389085649,1759575153414,10000.01,0.00020668,2]
[389085650,1759575153437,10000.01,0.00020668,2]
[389085651,1759575153461,10000.01,0.00020668,2]
[389085652,1759575153484,10000.01,0.00020668,2]
[389085653,1759575153508,10000.01,0.00020668,2]
[389085654,1759575164234,-2069.76648724,0.00020668,2]
[389085655,1759575164251,-10000.01,0.00020668,2]
[389085656,1759575164282,-10000.01,0.00020668,2]
[389085657,1759575164366,-10000.01,0.00020668,2]
[389085658,1759575164525,-10000.01,0.00020668,2]
[389085659,1759575164753,-10000.01,0.00020668,2]
[389085660,1759575164921,-10000.01,0.00020668,2]
[389085661,1759575165105,-10000.01,0.00020668,2]
[389085662,1759575165416,-10000.01,0.00020668,2]
[389085663,1759575165561,-10000.01,0.00020668,2]
[389085664,1759575165722,-10000.01,0.00020668,2]
[389085665,1759575165895,-10000.01,0.00020668,2]
[389085666,1759575166057,-10000.01,0.00020668,2]
[389085667,1759575166180,-10000.01,0.00020668,2]
[389085668,1759575166287,-10000.01,0.00020668,2]
[389085669,1759575166430,-10000.01,0.00020668,2]
[389085670,1759575166543,-10000.01,0.00020668,2]
[389085671,1759575167102,-10000.01,0.00020668,2]
[389085672,1759575167116,-10000.01,0.00020668,2]
[389085673,1759575176811,-3237.42,0.00020461,2]
[389085674,1759575178199,666.0,0.00019784,2]
[389085675,1759575178861,-9334.01,0.00020668,2]
[389085676,1759575178925,-10000.01,0.00020668,2]
[389085677,1759575179080,-10000.01,0.00020668,2]
[389085678,1759575179174,-10000.01,0.00020668,2]
[389085679,1759575179300,-10000.01,0.00020668,2]
[389085680,1759575179392,2859.17,0.00020256,2]
[389085681,1759575179413,2140.83,0.00020256,2]
[389085682,1759575179448,-351.87790896,0.00020668,2]
[389085684,1759575186857,-326.85350048,0.00020759,2]
[389085685,1759575186885,-500.0,0.00020759,2]
[389085686,1759575186914,-784.2,0.00020759,2]
[389085687,1759575186941,-819.73,0.00020759,2]
[389085688,1759575186969,-366.12182424,0.00020759,2]
[389085689,1759575186997,-500.0,0.00020759,2]
[389085690,1759575187027,-500.0,0.00020759,2]
[389085691,1759575187055,-1159.81935056,0.00020759,2]
[389085692,1759575187190,-86.56064944,0.00020759,2]
[389085693,1759575187218,-1057.39,0.00020759,2]
[389085694,1759575187247,-718.07,0.00020759,2]
[389085695,1759575187276,-1223.01,0.00020759,2]
[389085696,1759575188917,866.42,0.00020759,2]
[389085697,1759575190958,-500.0,0.00020767,2]
[389085698,1759575190985,-1704.26,0.00020767,2]
[389085699,1759575191011,-1709.41,0.00020767,2]
[389085700,1759575192936,-2878.85,0.00020767,2]
[389085701,1759575193133,500.0,0.00020759,2]
[389085702,1759575194009,500.0,0.00020767,2]
[389085703,1759575195439,2226.28534363,0.00020759,2]
[389085704,1759575196962,-500.0,0.00020768,2]
[389085705,1759575196988,-1085.57,0.00020768,2]
[389085706,1759575197014,-121.15,0.00020768,2]
[389085707,1759575198977,-3413.44,0.00020768,2]
[389085708,1759575199016,-2926.22530581,0.00020768,2]
[389085709,1759575199182,500.0,0.00020767,2]
[389085710,1759575201421,516.02465637,0.00020759,2]
[389085711,1759575201445,959.15534363,0.00020759,2]
[389085712,1759575203024,-246.90469419,0.00020768,2]
[389085713,1759575203056,-500.0,0.00020768,2]
[389085714,1759575203084,-500.0,0.00020768,2]
[389085715,1759575203115,-500.0,0.00020768,2]
[389085716,1759575203148,-1160.09,0.00020768,2]
[389085717,1759575203176,-303.96061162,0.00020768,2]
[389085718,1759575203337,-1618.94404475,0.00020768,2]
[389085719,1759575203374,2004.37335749,0.00020759,2]
[389085720,1759575203397,2995.62664251,0.00020759,2]
[389085721,1759575203699,184.46771077,0.00020669,2]
[389085722,1759575205023,-1959.15534363,0.00020768,2]
[389085723,1759575205054,-500.0,0.00020768,2]
[389085724,1759575205080,-485.97070948,0.00020768,2]
[389085725,1759575205107,-500.0,0.00020768,2]
[389085726,1759575205136,-454.95496589,0.00020768,2]
[389085727,1759575205164,-500.0,0.00020768,2]
[389085728,1759575205191,-312.837962,0.00020768,2]
[389085729,1759575206002,500.0,0.00020759,2]
[389085730,1759575207029,-574.172038,0.00020768,2]
[389085731,1759575207061,-500.0,0.00020768,2]
[389085732,1759575207088,-500.0,0.00020768,2]
[389085733,1759575207115,-640.54,0.00020768,2]
[389085734,1759575207145,-500.0,0.00020768,2]
[389085735,1759575207173,-1393.88,0.00020768,2]
[389085736,1759575207632,500.0,0.00020759,2]
[389085737,1759575207857,500.0,0.00020768,2]
[389085738,1759575211085,-520.0,0.00020769,3]
[389085739,1759575211223,-2894.93234109,0.00020769,2]
[389085740,1759575212858,607.47,0.00020767,2]
[389085741,1759575213114,-3878.14234109,0.00020769,2]
[389085742,1759575213149,-1636.25531782,0.00020769,2]
[389085743,1759575213331,175.355924,0.00020768,2]
[389085744,1759575213359,324.644076,0.00020768,2]
[389085745,1759575217090,500.0,0.00020768,2]
[389085746,1759575217134,-607.47,0.00020769,2]
[389085747,1759575217162,-500.0,0.00020769,2]
[389085748,1759575217190,-500.0,0.00020769,2]
[389085749,1759575217217,-1117.03,0.00020769,2]
[389085750,1759575217244,-500.0,0.00020769,2]
[389085751,1759575217271,-500.0,0.00020769,2]
[389085752,1759575217420,-1551.01,0.00020769,2]
[389085753,1759575218828,500.0,0.00020768,2]
[389085754,1759575220510,1469.84,0.00020767,2]
[389085755,1759575220870,4050.02,0.00020768,2]
[389085756,1759575222314,500.0,0.00020768,2]
[389085757,1759575222339,483.98585311,0.00020768,2]
[389085758,1759575223916,500.0,0.00020759,2]
[389085759,1759575224085,500.0,0.00020768,2]
[389085760,1759575225204,-2075.77,0.00020769,2]
[389085761,1759575225232,-500.0,0.00020769,2]
[389085762,1759575225264,-500.0,0.00020769,2]
[389085763,1759575225294,-1041.76,0.00020769,2]
[389085764,1759575225321,-500.0,0.00020769,2]
[389085765,1759575225347,-264.95,0.00020769,2]
[389085766,1759575225763,500.0,0.00020768,2]
[389085767,1759575226121,671.52007089,0.00020768,2]
[389085768,1759575226146,4328.47992911,0.00020768,2]
[389085769,1759575228544,438.50681424,0.00020768,2]
[389085770,1759575229243,4227.09,0.00020759,2]
[389085771,1759575229318,-235.05,0.00020769,2]
[389085772,1759575229345,-4009.79,0.00020769,2]
[389085773,1759575229678,1005.93325665,0.00020768,2]
[389085774,1759575229932,1361.91,0.00020759,2]
[389085775,1759575231361,-11.74674335,0.00020768,2]
[389085776,1759575232040,957.37,0.00020768,2]
[389085777,1759575233675,453.45546985,0.00020759,2]
[389085778,1759575235176,500.0,0.00020768,2]
[389085779,1759575235965,5252.71,0.00020759,2]
[389085780,1759575237402,1829.72,0.00020759,2]
[389085781,1759575237749,500.0,0.00020768,2]
[389085782,1759575238109,483.26104345,0.00020759,2]
[389085783,1759575238135,16.73895655,0.00020759,2]
[389085784,1759575238471,2449.67,0.00020768,2]
[389085785,1759575238958,1001.85,0.00020767,2]
[389085786,1759575241495,447.73352119,0.00020768,2]
[389085787,1759575242712,300.0,0.00020768,2]
[389085788,1759575242742,300.0,0.000207,2]
[389085789,1759575243246,500.0,0.00020768,2]
[389085790,1759575243386,-1510.33,0.00020769,2]
[389085791,1759575243418,-500.0,0.00020769,2]
[389085792,1759575243453,-500.0,0.00020769,2]
[389085793,1759575243486,-500.0,0.00020769,2]
[389085794,1759575243519,-500.0,0.00020769,2]
[389085795,1759575243551,-1015.42,0.00020769,2]
[389085797,1759575244059,500.0,0.00020759,2]
[389085798,1759575244201,448.51,0.00020767,2]
[389085799,1759575244225,482.6,0.00020767,2]
[389085800,1759575244981,1578.43,0.00020759,2]
[389085801,1759575245070,765.17,0.00020759,2]
[389085802,1759575245315,500.0,0.00020768,2]
[389085803,1759575247446,-729.63,0.0002077,2]
[389085804,1759575247476,-1375.79,0.0002077,2]
[389085805,1759575247505,-500.0,0.0002077,2]
[389085806,1759575247535,-1621.38,0.0002077,2]
[389085807,1759575248725,5000.0,0.00020769,2]
[389085808,1759575251457,-1546.41,0.0002077,2]
[389085809,1759575252224,843.15,0.00020768,2]
[389085810,1759575252251,500.0,0.00020769,2]
[389085811,1759575252501,500.0,0.00020768,2]
[389085812,1759575252533,2790.39,0.00020767,2]
[389085813,1759575253211,563.62,0.00020759,2]
[389085814,1759575253284,500.0,0.00020759,2]
[389085815,1759575253368,300.0,0.000207,2]
[389085816,1759575253513,-2340.21,0.00020771,2]
[389085817,1759575253712,-500.0,0.00020771,2]
[389085818,1759575254141,500.0,0.00020768,2]
[389085819,1759575255170,500.0,0.00020769,2]
[389085820,1759575255509,-500.0,0.00020861,2]
[389085821,1759575255537,-500.0,0.00020861,2]
[389085822,1759575255563,-500.0,0.00020861,2]
[389085823,1759575255591,-500.0,0.00020861,2]
[389085824,1759575255620,-500.0,0.00020861,2]
[389085825,1759575255648,-500.0,0.00020861,2]
[389085826,1759575255677,-500.0,0.00020861,2]
[389085827,1759575255704,-500.0,0.00020861,2]
[389085828,1759575255733,-500.0,0.00020861,2]
[389085829,1759575255761,-490.51,0.00020861,2]
[389085830,1759575255913,-18.99,0.00020861,2]
[389085831,1759575255941,-500.0,0.00020861,2]
[389085832,1759575255968,-500.0,0.00020861,2]
[389085833,1759575255995,-500.0,0.00020861,2]
[389085834,1759575256023,-500.0,0.00020861,2]
[389085835,1759575256052,-608.99,0.00020861,2]
[389085836,1759575257444,500.0,0.00020768,2]
[389085837,1759575259055,500.0,0.00020768,2]
[389085838,1759575260390,500.0,0.00020769,2]
[389085839,1759575260749,500.0,0.00020759,2]
[389085840,1759575263397,1353.86,0.00020767,2]
[389085841,1759575264215,300.0,0.000207,2]
[389085842,1759575268087,500.0,0.00020759,2]
[389085843,1759575268437,500.0,0.00020768,2]
[389085844,1759575270081,90.19,0.00020759,2]
[389085845,1759575270106,441.08,0.00020759,2]
[389085846,1759575270350,2522.93,0.00020769,2]
[389085847,1759575270555,580.25,0.00020759,2]
[389085848,1759575271056,500.0,0.00020767,2]
[389085849,1759575271159,5000.0,0.00020861,2]
[389085850,1759575271296,500.0,0.00020759,2]
[389085851,1759575271637,-500.0,0.00020872,2]
[389085852,1759575271666,-500.0,0.00020872,2]
[389085853,1759575271693,-500.0,0.00020872,2]
[389085854,1759575271722,-747.42,0.00020872,2]
[389085855,1759575271750,-500.0,0.00020872,2]
[389085856,1759575271780,-500.0,0.00020872,2]
[389085857,1759575271807,-465.01439612,0.00020872,2]
[389085858,1759575271836,-426.79960627,0.00020872,2]
[389085859,1759575271987,500.0,0.00020768,2]
[389085860,1759575272225,500.0,0.00020759,2]
[389085861,1759575273426,500.0,0.00020759,2]
[389085862,1759575274593,221.54199522,0.000207,2]
[389085863,1759575274616,78.45800478,0.000207,2]
[389085864,1759575275355,500.0,0.00020769,2]
[389085865,1759575275466,1066.92,0.00020759,2]
[389085866,1759575275650,500.0,0.00020768,2]
[389085867,1759575275889,800.0,0.00020565,2]
[389085868,1759575278478,4170.84,0.00020768,2]
[389085869,1759575278855,500.0,0.00020769,2]
[389085870,1759575279197,500.0,0.00020768,2]
[389085871,1759575281852,500.0,0.00020767,2]
[389085872,1759575281929,500.0,0.00020769,2]
[389085873,1759575282234,500.0,0.00020872,2]
[389085874,1759575282482,383.79199522,0.00020759,2]
[389085875,1759575282504,1314.87800478,0.00020759,2]
[389085876,1759575285789,300.0,0.000207,2]
[389085877,1759575286035,253.63267838,0.00020767,2]
[389085878,1759575286688,500.0,0.00020768,2]
[389085879,1759575286918,500.0,0.00020872,2]
[389085880,1759575287762,-600.0,0.00020931,2]
[389085881,1759575288169,500.0,0.00020759,2]
[389085882,1759575289143,1151.91,0.00020767,2]
[389085883,1759575290010,500.0,0.00020771,2]
[389085884,1759575290164,500.0,0.00020767,2]
[389085885,1759575290189,587.65,0.0002077,2]
[389085886,1759575290549,500.0,0.00020872,2]
[389085887,1759575292317,429.28569681,0.00020768,2]
[389085888,1759575293893,500.0,0.00020768,2]
[389085889,1759575293995,4131.16430319,0.00020931,2]